bitfinex-derivatives/quotes_ETHF0:USTF0_20241231
["timestamp","ask_amount","ask_price","bid_price","bid_amount"]
[1735679100687,0.29899,3350.5,3350.3,0.29899]
[1735679100887,0.29899,3350.4,3350.3,0.29899]
[1735679101089,3.2078,3350.7,3350.4,0.29899]
[1735679101287,3.50677,3350.7,3350.5,0.29897]
[1735679101486,0.29898,3350.6,3350.4,0.29898]
[1735679101683,3.2078,3350.7,3350.1,0.4424]
[1735679101989,0.29898,3350.5,3350.3,0.29899]
[1735679102590,0.29898,3350.6,3350.4,0.29899]
[1735679103483,1.3582,3350.8,3350.5,0.29897]
[1735679103687,0.29898,3350.6,3350.4,0.29898]
[1735679103887,1.3582,3350.8,3350.1,1.6624]
[1735679104092,0.29897,3350.7,3350.5,0.29897]
[1735679106690,0.29897,3350.7,3350.1,1.6624]
[1735679106893,0.29897,3350.7,3350.6,0.29897]
[1735679108494,1.3152,3351.0,3350.1,1.18994]
[1735679108691,1.3152,3351.0,3350.5,0.29898]
[1735679108893,0.29897,3350.7,3350.5,0.29898]
[1735679109595,0.29897,3350.7,3350.6,0.29897]
[1735679110293,0.29895,3350.9,3350.8,0.29895]
[1735679111098,0.29896,3350.8,3350.7,0.29896]
[1735679112597,0.29896,3350.7,3350.6,0.29897]
[1735679112795,0.74739,3350.8,3350.0,3.2078]
[1735679113092,0.29903,3349.9,3349.6,9.36178042]
[1735679113291,5.31662156,3349.9,3349.6,9.36178042]
[1735679113499,10.31662156,3349.9,3349.8,5.47961548]
[1735679113696,8.50683,3349.9,3349.8,2.68281548]
[1735679114092,0.2991,3349.2,3349.1,3.2078]
[1735679114691,0.29909,3349.3,3349.1,3.5069]
[1735679115797,0.2991,3349.2,3349.1,3.5069]
[1735679116202,0.2991,3349.2,3349.1,3.2078]
[1735679116500,1.80979156,3349.7,3349.1,3.5069]
[1735679116691,0.2991,3349.2,3349.1,3.5069]
[1735679118395,0.74761,3349.8,3349.1,3.2078]
[1735679118603,0.29909,3349.4,3349.3,0.29908]
[1735679119992,0.74761,3349.8,3349.1,3.2078]
[1735679120201,0.2991,3349.2,3349.1,3.2078]
[1735679121302,0.8924,3349.4,3348.6,0.4206]
[1735679121303,2.70219156,3349.4,3348.6,3.2078]
[1735679121500,0.29913,3348.8,3348.6,0.29915]
[1735679122201,0.8924,3349.4,3348.6,1.80979156]
[1735679122509,0.29911,3349.1,3349.0,0.29911]
[1735679123209,3.50560161,3349.6,3349.3,0.29909]
[1735679123401,0.29908,3349.4,3349.3,0.29909]
[1735679123707,3.50560161,3349.6,3349.2,0.29909]
[1735679124005,0.29909,3349.4,3349.0,3.2078]
[1735679124199,0.29907,3349.6,3349.4,0.29907]
[1735679124421,0.29906,3349.7,3349.5,0.29907]
[1735679124603,0.29907,3349.6,3349.3,0.29908]
[1735679125500,0.29907,3349.6,3349.0,3.2078]
[1735679125704,0.29907,3349.5,3349.3,0.29908]
[1735679126202,0.29908,3349.4,3349.2,0.29909]
[1735679126703,0.2991,3349.2,3349.0,0.29911]
[1735679128026,0.29905,3349.7,3349.4,0.29907]
[1735679128319,0.29907,3349.5,3349.3,0.29908]
[1735679128515,0.873,3349.8,3349.0,3.2078]
[1735679128716,0.873,3349.8,3348.9,6.23759156]
[1735679128918,0.29906,3349.6,3349.4,0.29907]
[1735679129215,0.29906,3349.7,3349.5,0.29907]
[1735679129720,0.29906,3349.6,3349.4,0.29908]
[1735679130118,0.873,3349.8,3348.9,6.98540156]
[1735679130318,0.29907,3349.5,3349.3,0.29908]
[1735679130722,0.29909,3349.3,3349.1,0.2991]
[1735679130915,0.29909,3349.3,3348.9,6.23759156]
[1735679131114,0.29909,3349.3,3349.1,0.2991]
[1735679132220,0.2991,3349.2,3349.1,0.2991]
[1735679133015,0.2991,3349.2,3348.7,0.8871]
[1735679133016,0.74764,3349.7,3348.7,0.8871]
[1735679133218,0.29913,3348.8,3348.7,0.4625]
[1735679134715,0.29913,3348.8,3348.7,0.76164]
[1735679135217,0.4216,3349.2,3348.7,0.4625]
[1735679135520,0.29911,3349.1,3349.0,0.29911]
[1735679135722,0.2991,3349.2,3349.1,0.2991]
[1735679136825,0.29909,3349.3,3349.2,0.29908]
[1735679138317,0.4463,3349.5,3349.0,0.4199]
[1735679138826,0.29909,3349.3,3349.2,0.29909]
[1735679139125,0.4463,3349.5,3349.0,0.4199]
[1735679139321,0.4463,3349.5,3349.2,0.29909]
[1735679139521,0.29909,3349.3,3349.2,0.29909]
[1735679141925,0.4463,3349.5,3349.0,0.4199]
[1735679142123,0.29911,3349.1,3349.0,0.71901]
[1735679143225,0.29911,3349.1,3349.0,0.29911]
[1735679145927,0.2991,3349.3,3349.2,0.29909]
[1735679146227,0.4463,3349.5,3348.9,1.80979156]
[1735679146427,0.74538,3349.5,3349.4,0.29908]
[1735679147726,0.4463,3349.5,3349.4,0.29908]
[1735679148032,0.4557,3349.7,3349.6,0.29906]
[1735679148233,0.75475,3349.7,3349.6,0.29906]
[1735679148924,0.29907,3349.6,3349.5,0.29907]
[1735679152729,0.4557,3349.7,3349.4,0.428]
[1735679152925,0.4326,3349.9,3349.4,0.428]
[1735679152926,0.4326,3349.9,3349.8,0.29904]
[1735679153334,0.4311,3350.1,3350.0,0.29903]
[1735679153532,6.71340161,3350.2,3349.4,0.428]
[1735679153732,0.4311,3350.0,3349.4,0.428]
[1735679153933,0.29904,3349.9,3349.7,0.29905]
[1735679154135,0.4311,3350.0,3349.7,0.29905]
[1735679154340,0.29904,3349.8,3349.7,0.29905]
[1735679155040,0.29906,3349.7,3349.6,0.29906]
[1735679155240,0.4311,3350.0,3349.4,0.428]
[1735679155538,0.29904,3349.9,3349.8,0.29904]
[1735679158240,0.29904,3349.9,3349.4,1.17569]
[1735679158241,0.4311,3350.0,3349.5,3.2078]
[1735679158634,0.29903,3349.9,3349.8,0.29904]
[1735679160341,0.73013,3350.0,3349.9,0.29903]
[1735679160733,0.29903,3350.0,3349.5,3.95547]
[1735679160940,0.29904,3349.9,3349.8,0.29904]
[1735679161744,0.29903,3350.0,3349.9,0.29903]
[1735679162543,0.29905,3349.9,3349.8,0.29904]
[1735679163738,3.93950161,3350.2,3349.5,3.95547]
[1735679164045,3.50560161,3350.2,3350.1,0.29902]
[1735679164740,3.50560161,3350.2,3350.1,0.74282]
[1735679165342,0.29899,3350.4,3350.1,5.02713304]
[1735679165646,0.29899,3350.4,3350.3,3.5068]
[1735679165948,0.29899,3350.4,3350.3,3.2078]
[1735679166153,0.29901,3350.2,3350.1,4.58333304]
[1735679166841,0.4385,3350.3,3349.8,0.29904]
[1735679167045,0.29904,3349.9,3349.8,0.29904]
[1735679167241,0.4385,3350.3,3349.7,13.01338042]
[1735679167445,0.29904,3350.0,3349.9,0.29902]
[1735679168648,2.77909268,3350.3,3349.7,3.6516]
[1735679168848,0.29904,3349.9,3349.8,0.29904]
[1735679171248,0.29908,3349.4,3349.3,9.66086042]
[1735679171447,0.29908,3349.4,3349.3,9.36178042]
[1735679172250,0.29909,3349.3,3349.2,3.5069]
[1735679172450,3.2078,3349.4,3349.1,9.36178042]
[1735679172650,0.2991,3349.2,3349.1,9.36178042]
[1735679173850,5.54839268,3349.4,3348.8,0.73773]
[1735679174053,0.29912,3349.0,3348.8,0.73773]
[1735679175353,2.34059268,3349.3,3348.8,0.73773]
[1735679175553,0.29912,3349.0,3348.8,0.73773]
[1735679176354,0.29912,3348.9,3348.8,0.4386]
[1735679176558,0.29912,3348.9,3348.8,0.73773]
[1735679181553,4.15038424,3349.3,3348.8,0.73773]
[1735679181554,4.15038424,3349.3,3348.8,0.4386]
[1735679181763,2.34059268,3349.3,3349.2,0.2991]
[1735679182261,2.34059268,3349.3,3349.2,0.7352]
[1735679183159,0.29908,3349.4,3349.2,0.4361]
[1735679183355,2.34059268,3349.8,3349.2,0.4361]
[1735679183757,0.29907,3349.6,3349.5,0.29906]
[1735679184662,2.34059268,3349.9,3349.2,0.4361]
[1735679184860,0.29907,3349.5,3349.4,0.29907]
[1735679185161,0.29907,3349.6,3349.4,0.29907]
[1735679185353,2.34059268,3349.9,3349.4,0.29907]
[1735679185659,0.29907,3349.5,3349.4,0.29907]
[1735679186357,4.15038424,3349.9,3349.0,7.0467157]
[1735679186655,0.29911,3349.1,3349.0,7.0467157]
[1735679187358,0.29911,3349.0,3348.9,0.29912]
[1735679187754,0.29911,3349.1,3349.0,0.29911]
[1735679188664,0.29908,3349.4,3349.3,0.29908]
[1735679188859,0.8795,3349.5,3348.8,0.4386]
[1735679189153,1.80979156,3349.0,3348.5,7.0467157]
[1735679189358,0.29915,3348.6,3348.5,7.0467157]
[1735679189860,0.29915,3348.7,3348.6,0.29915]
[1735679190256,0.29915,3348.6,3348.5,7.3458657]
[1735679190857,0.29915,3348.6,3348.5,0.29915]
[1735679192266,0.4413,3348.8,3348.3,0.4625]
[1735679192557,0.29917,3348.4,3348.3,0.76167]
[1735679194265,0.29916,3348.6,3348.5,0.29915]
[1735679195555,0.4413,3348.8,3348.3,0.4625]
[1735679195860,0.29915,3348.7,3348.6,0.29914]
[1735679196859,0.29917,3348.5,3348.4,0.29915]
[1735679197262,0.29917,3348.5,3348.3,0.4625]
[1735679197464,0.29917,3348.5,3348.4,0.29917]
[1735679199858,0.29916,3348.6,3348.5,0.29915]
[1735679200260,3.2078,3348.8,3348.3,0.4625]
[1735679200458,2.34059268,3349.0,3348.8,0.29913]
[1735679200662,2.34059268,3349.0,3348.9,0.73422]
[1735679201069,2.34059268,3349.1,3349.0,0.29911]
[1735679202671,0.73769,3349.3,3349.2,0.2991]
[1735679204671,0.2991,3349.2,3349.1,0.2991]
[1735679205769,2.24839156,3349.3,3348.7,3.2078]
[1735679205970,0.74775,3349.2,3348.6,4.68875162]
[1735679206170,0.29914,3348.7,3348.6,4.68875162]
[1735679206573,0.29915,3348.6,3348.5,4.98791162]
[1735679206869,0.72595,3348.6,3348.5,4.68875162]
[1735679208363,0.4268,3348.6,3348.2,0.29919]
[1735679208566,0.4268,3348.6,3348.1,3.2078]
[1735679208769,0.4268,3348.6,3348.5,0.29916]
[1735679208975,2.34059268,3348.8,3348.7,0.29914]
[1735679209872,0.29913,3348.9,3348.8,0.29913]
[1735679210068,0.9013,3349.0,3348.5,4.0874]
[1735679210272,4.15038424,3349.3,3348.9,0.29912]
[1735679210474,0.29911,3349.0,3348.9,0.29912]
[1735679210871,2.34059268,3349.4,3348.7,1.80979156]
[1735679211067,2.34059268,3349.4,3349.3,0.29909]
[1735679211468,2.34059268,3349.4,3349.3,5.31668156]
[1735679212070,2.34059268,3349.4,3349.3,3.50689]
[1735679212274,9.23898371,3350.0,3349.8,0.29904]
[1735679212275,0.29903,3349.9,3349.8,0.29904]
[1735679212672,5.54839268,3350.0,3349.9,0.29903]
[1735679213073,2.34059268,3350.0,3349.9,0.29903]
[1735679213777,0.29902,3350.1,3349.7,3.6298]
[1735679213968,0.29902,3350.1,3350.0,0.29903]
[1735679214166,2.34059268,3350.3,3349.7,0.422]
[1735679214371,0.29902,3350.2,3350.0,0.29902]
[1735679214575,2.34059268,3350.3,3350.2,0.29901]
[1735679215174,2.34059268,3350.4,3350.0,1.80979156]
[1735679215370,2.34059268,3350.4,3350.3,0.299]
[1735679216875,2.34059268,3350.4,3350.1,3.2078]
[1735679216876,0.29897,3350.6,3350.4,0.29899]
[1735679217276,0.29897,3350.7,3350.1,3.2078]
[1735679217468,2.80489268,3350.8,3350.1,3.2078]
[1735679217684,3.10385268,3350.8,3350.6,0.29897]
[1735679217981,2.80489268,3350.8,3350.7,0.29896]
[1735679218284,0.29896,3350.7,3350.5,0.29897]
[1735679218970,0.29898,3350.5,3350.3,0.76469]
[1735679219171,0.299,3350.4,3350.2,0.299]
[1735679219776,0.299,3350.3,3350.2,0.299]
[1735679220571,2.27409156,3350.8,3350.1,3.2078]
[1735679220774,0.29899,3350.4,3350.3,0.29899]
[1735679221283,0.29898,3350.6,3350.5,0.29898]
[1735679221482,0.4643,3350.8,3350.1,3.2078]
[1735679221675,0.4643,3350.8,3350.7,0.29896]
[1735679223285,0.4643,3350.8,3350.4,3.2078]
[1735679223477,0.299,3350.3,3350.1,0.29902]
[1735679223683,0.29905,3350.1,3350.0,3.2078]
[1735679223984,0.29905,3350.1,3350.0,3.50685]
[1735679224385,0.74835,3350.1,3350.0,3.50685]
[1735679224686,0.4493,3350.1,3350.0,3.50685]
[1735679224889,0.4493,3350.1,3350.0,0.29905]
[1735679225081,0.29908,3349.8,3349.5,0.7346]
[1735679225386,0.29912,3349.3,3349.1,0.4355]
[1735679225882,0.29912,3349.3,3349.1,0.73463]
[1735679226585,1.80979156,3349.2,3348.5,0.4507]
[1735679226780,3.2078,3348.9,3348.7,0.29916]
[1735679226974,3.2078,3349.4,3348.7,0.74793]
[1735679227388,3.50691,3349.4,3349.2,0.29912]
[1735679227589,0.29912,3349.3,3348.6,3.44749156]
[1735679228085,0.29911,3349.4,3349.2,0.29912]
[1735679228482,0.29911,3349.4,3348.6,3.44749156]
[1735679228691,0.29911,3349.4,3349.3,0.29912]
[1735679229791,5.46969156,3349.8,3348.9,1.80979156]
[1735679229792,3.6599,3349.8,3348.9,1.80979156]
[1735679229990,0.2991,3349.6,3349.4,0.2991]
[1735679230486,3.95898,3349.8,3349.5,0.29909]
[1735679230686,0.29908,3349.7,3349.5,0.29909]
[1735679230878,3.6599,3349.8,3349.3,0.29911]
[1735679230879,0.29909,3349.6,3349.3,0.29911]
[1735679231084,3.6599,3349.8,3349.0,0.4463]
[1735679231289,0.29909,3349.7,3349.4,0.2991]
[1735679232784,0.29909,3349.6,3349.3,0.29911]
[1735679232993,0.2991,3349.5,3349.2,0.29912]
[1735679233191,0.2991,3349.5,3349.3,0.29912]
[1735679233485,1.80979156,3349.6,3349.0,0.4463]
[1735679233689,1.80979156,3349.6,3349.0,0.74544]
[1735679233690,0.29912,3349.3,3349.0,0.74544]
[1735679233884,3.6412,3349.4,3349.0,0.74544]
[1735679233885,3.94031,3349.4,3349.2,0.29913]
[1735679234180,3.94031,3349.4,3349.0,0.4463]
[1735679234181,3.2078,3349.4,3349.0,0.4463]
[1735679234387,3.2078,3349.4,3349.3,0.29912]
[1735679234782,3.2078,3349.4,3349.0,0.4463]
[1735679235184,1.80979156,3349.3,3348.8,3.2078]
[1735679235381,0.29912,3349.3,3349.0,0.29914]
[1735679235890,3.2078,3349.4,3349.2,0.29912]
[1735679236093,3.2078,3349.4,3349.3,0.29912]
[1735679236387,0.2991,3349.6,3349.4,0.29911]
[1735679236789,2.79269268,3349.8,3348.8,3.2078]
[1735679236994,0.29911,3349.4,3349.2,0.29912]
[1735679237191,3.2078,3349.5,3349.2,0.29912]
[1735679237589,3.2078,3349.5,3348.8,3.2078]
[1735679237789,0.29913,3349.2,3349.0,0.29914]
[1735679237987,3.2078,3349.5,3349.0,0.29914]
[1735679238295,0.29913,3349.2,3349.0,0.29914]
[1735679238793,0.29913,3349.2,3349.1,0.29914]
[1735679238996,3.2078,3349.5,3348.8,3.2078]
[1735679239290,0.29911,3349.4,3349.2,0.29912]
[1735679239492,3.2078,3349.5,3349.4,0.29911]
[1735679239890,3.5069,3349.5,3349.4,0.29911]
[1735679241392,3.2078,3349.5,3348.8,3.6729]
[1735679241598,3.2078,3349.5,3348.8,3.2078]
[1735679241791,0.29914,3349.1,3349.0,0.29914]
[1735679242409,0.29913,3349.2,3349.1,0.29913]
[1735679242596,3.2078,3349.5,3349.4,0.29911]
[1735679242797,3.5069,3349.5,3349.4,0.29911]
[1735679243795,3.2078,3349.5,3349.4,0.29911]
[1735679244305,3.5069,3349.5,3349.4,0.29911]
[1735679244797,2.34059268,3350.1,3349.7,0.29908]
[1735679245003,2.34059268,3350.1,3350.0,0.29905]
[1735679245494,2.34059268,3350.1,3349.8,3.49289156]
[1735679245495,2.34059268,3350.4,3349.9,0.4519]
[1735679245699,2.34059268,3350.4,3350.3,0.29903]
[1735679247001,0.299,3350.7,3350.6,0.299]
[1735679249608,0.29899,3350.8,3350.7,0.29898]
[1735679251493,0.29898,3350.9,3350.8,0.29898]
[1735679251793,0.29899,3350.8,3350.7,0.29899]
[1735679252198,4.58678424,3351.1,3350.4,0.4534]
[1735679252399,4.88574424,3351.1,3350.9,0.29897]
[1735679252601,0.29897,3351.0,3350.9,0.29897]
[1735679253197,4.58678424,3351.1,3350.4,1.20095]
[1735679253408,5.01759156,3350.6,3350.0,0.4606]
[1735679253605,0.8599,3350.5,3350.0,0.4606]
[1735679253808,1.15892,3350.5,3350.4,0.29902]
[1735679254505,2.34059268,3350.6,3350.5,0.29901]
[1735679254911,2.34059268,3350.6,3350.5,1.51701]
[1735679255106,3.47520938,3350.7,3350.6,0.299]
[1735679255402,3.47520938,3350.7,3350.6,2.53639156]
[1735679256005,0.72725,3351.3,3351.2,0.29895]
[1735679256407,0.4283,3351.3,3350.7,0.8708]
[1735679256609,0.29898,3350.8,3350.7,1.16979]
[1735679256799,0.29898,3350.9,3350.8,0.29897]
[1735679258511,0.29897,3351.0,3350.8,0.29898]
[1735679258713,0.29897,3351.0,3350.9,0.29897]
[1735679260621,0.29897,3351.0,3350.7,0.8708]
[1735679260622,3.6361,3351.3,3350.7,0.8708]
[1735679260817,0.29896,3351.2,3351.1,0.29895]
[1735679265214,0.4283,3351.3,3350.7,1.61828]
[1735679265418,0.72724,3351.3,3351.2,0.29895]
[1735679268526,0.72724,3351.3,3350.7,0.8708]
[1735679268527,0.4283,3351.3,3350.7,0.8708]
[1735679268713,0.29901,3350.6,3350.5,0.29901]
[1735679269019,0.29902,3350.4,3350.3,0.29903]
[1735679269317,3.50682,3350.4,3350.3,0.29903]
[1735679269618,3.50682,3350.4,3350.2,1.18813]
[1735679269820,0.29903,3350.3,3350.2,1.18814]
[1735679270014,3.50682,3350.4,3350.3,0.29903]
[1735679271124,3.2078,3350.4,3350.2,0.8891]
[1735679271321,0.29903,3350.3,3350.2,1.18813]
[1735679273224,0.29905,3350.2,3350.1,0.29904]
[1735679278415,3.50682,3350.4,3350.3,0.29903]
[1735679280724,0.29902,3350.4,3350.3,0.29903]
[1735679283022,0.4441,3350.5,3349.8,4.101]
[1735679283225,0.29906,3350.0,3349.9,0.29905]
[1735679283530,0.29906,3349.9,3349.8,3.2078]
[1735679283830,0.76136,3349.9,3349.8,3.2078]
[1735679284224,0.76136,3349.9,3349.8,3.50687]
[1735679285522,0.29905,3350.2,3349.8,3.2078]
[1735679285725,0.76135,3350.2,3350.1,0.29904]
[1735679286331,0.76135,3350.2,3349.8,3.2078]
[1735679286332,0.4623,3350.2,3349.8,3.2078]
[1735679286627,0.4623,3350.2,3349.8,3.50687]
[1735679286628,0.29906,3349.9,3349.8,3.50687]
[1735679287234,0.29906,3350.0,3349.9,0.29906]
[1735679287829,0.76134,3350.2,3350.1,0.29905]
[1735679288231,0.4441,3350.5,3349.9,0.4458]
[1735679288423,0.74311,3350.5,3350.4,0.29902]
[1735679288623,0.74311,3350.5,3350.0,1.18432]
[1735679288624,0.4441,3350.5,3350.0,1.18432]
[1735679288824,0.29903,3350.4,3350.3,0.29902]
[1735679289130,0.29904,3350.3,3350.2,0.29903]
[1735679289927,0.4441,3350.5,3350.0,0.4367]
[1735679290126,0.29903,3350.4,3350.3,0.29902]
[1735679291428,0.29903,3350.3,3350.2,0.29903]
[1735679291627,0.29903,3350.4,3350.3,0.29902]
[1735679292833,0.29904,3350.3,3350.2,0.29903]
[1735679297932,3.6395,3351.0,3350.1,3.2078]
[1735679298133,6.60375371,3351.1,3350.3,1.80979156]
[1735679298333,3.2078,3351.0,3350.2,0.7476]
[1735679298532,0.29901,3350.6,3350.5,0.29901]
[1735679300332,0.29901,3350.6,3350.2,0.7476]
[1735679300333,0.29899,3350.8,3350.7,0.29898]
[1735679301435,3.2078,3351.0,3350.7,0.29898]
[1735679301631,3.50677,3351.0,3350.9,0.29897]
[1735679302533,3.2078,3351.0,3350.7,0.4232]
[1735679302934,0.29898,3350.8,3350.7,0.72218]
[1735679303438,0.29898,3350.9,3350.8,0.29897]
[1735679306745,0.74948,3350.9,3350.8,0.29897]
[1735679306935,0.4505,3350.9,3350.5,0.4206]
[1735679307141,0.299,3350.6,3350.5,0.71961]
[1735679308047,0.299,3350.7,3350.6,0.29899]
[1735679309453,0.4505,3350.9,3350.5,0.4206]
[1735679309648,0.7538,3350.6,3350.5,0.71961]
[1735679310154,0.4548,3350.6,3350.5,0.71961]
[1735679310450,0.299,3350.6,3350.5,0.71961]
[1735679312451,0.299,3350.8,3350.7,0.29898]
[1735679313951,0.4505,3350.9,3350.6,0.299]
[1735679313952,0.299,3350.7,3350.6,0.299]
[1735679318254,4.25653318,3350.9,3350.5,0.4206]
[1735679318457,3.50705318,3350.9,3350.8,0.29898]
[1735679319965,3.50705318,3350.9,3350.6,1.16951]
[1735679319966,3.2078,3351.0,3350.9,0.29897]
[1735679325564,3.50677,3351.0,3350.9,0.29897]
[1735679326060,3.2078,3351.0,3350.9,0.29897]
[1735679326456,0.299,3350.8,3350.7,0.29897]
[1735679326665,3.2078,3351.0,3350.9,0.29897]
[1735679330972,3.50677,3351.0,3350.9,0.29897]
[1735679331365,0.29897,3351.0,3350.9,0.29897]
[1735679332968,0.29899,3350.8,3350.7,0.29898]
[1735679337876,0.29899,3350.7,3350.6,7.89655162]
[1735679338071,1.20229,3350.7,3350.6,8.19555162]
[1735679338272,1.20229,3350.7,3350.6,7.89655162]
[1735679338579,1.20229,3350.7,3350.6,8.19555162]
[1735679339079,4.41009,3350.7,3350.6,4.68875162]
[1735679339274,6.21988156,3350.7,3350.6,4.68875162]
[1735679339476,6.21988156,3350.7,3350.6,2.43035162]
[1735679340075,0.29902,3350.4,3350.3,7.0467157]
[1735679341478,10.7656317,3350.4,3349.8,7.0467157]
[1735679341783,3.50686,3349.9,3349.8,7.0467157]
[1735679342279,8.50686,3349.9,3349.8,7.0467157]
[1735679342482,8.92005338,3349.9,3349.8,7.0467157]
[1735679342670,8.92005338,3349.9,3349.8,6.4367157]
[1735679342875,8.92005338,3349.9,3349.8,2.9439157]
[1735679343079,18.71317084,3349.9,3348.7,0.29916]
[1735679343276,0.29916,3348.9,3348.7,0.29916]
[1735679343472,0.29919,3348.5,3348.4,9.36178042]
[1735679343672,3.50699,3348.5,3348.4,9.36178042]
[1735679343875,8.50699,3348.5,3348.4,9.36178042]
[1735679344085,8.50699,3348.5,3348.4,8.68115042]
[1735679344283,0.2992,3348.3,3348.2,11.70222552]
[1735679344580,2.10899156,3348.3,3348.2,11.70222552]
[1735679344779,7.10899156,3348.3,3348.2,11.70222552]
[1735679344988,0.29929,3347.4,3347.2,0.4649]
[1735679345283,3.2078,3347.4,3347.2,0.7642]
[1735679345478,3.2078,3347.4,3347.2,0.4649]
[1735679345679,5.01759156,3348.0,3347.2,0.4649]
[1735679345875,0.29929,3347.4,3347.2,0.4649]
[1735679346584,0.29929,3347.3,3347.2,0.4649]
[1735679346784,0.29928,3347.5,3347.2,0.7642]
[1735679347185,3.50707,3347.6,3347.2,0.76419]
[1735679347386,0.29928,3347.5,3347.2,0.76419]
[1735679347691,0.29928,3347.5,3347.2,0.7642]
[1735679348083,3.2078,3347.6,3347.4,0.29928]
[1735679348983,3.2078,3347.6,3347.3,0.4582]
[1735679349188,3.50707,3347.6,3347.3,0.75749]
[1735679349388,3.2078,3347.6,3347.3,0.4582]
[1735679349589,3.50707,3347.6,3347.3,0.75749]
[1735679349787,3.2078,3347.6,3347.4,0.29928]
[1735679350790,3.2078,3347.6,3347.3,0.4582]
[1735679351095,0.29928,3347.4,3347.3,0.4582]
[1735679351604,0.29929,3347.3,3347.2,0.4649]
[1735679352292,0.29931,3347.1,3347.0,3.2078]
[1735679354188,0.29931,3347.2,3347.0,3.50712]
[1735679354590,3.2078,3347.6,3347.0,3.2078]
[1735679354791,0.29928,3347.5,3347.3,0.29929]
[1735679355489,0.29928,3347.5,3347.2,0.2993]
[1735679356089,0.29929,3347.4,3347.2,0.2993]
[1735679356288,0.29929,3347.4,3347.0,3.2078]
[1735679356488,0.2993,3347.3,3347.1,0.29931]
[1735679356683,3.2078,3347.6,3347.0,3.2078]
[1735679356891,0.29929,3347.4,3347.1,0.29931]
[1735679357082,3.2078,3347.6,3347.0,3.2078]
[1735679357288,3.2078,3347.6,3347.0,3.50711]
[1735679357894,0.2993,3347.3,3347.1,0.76351]
[1735679358099,0.2993,3347.3,3347.1,0.4642]
[1735679358392,0.2993,3347.3,3347.2,0.00187173]
[1735679363292,1.5173,3347.3,3347.2,0.00187173]
[1735679364705,13.52193291,3347.3,3345.0,3.2078]
[1735679364887,0.29941,3346.0,3345.9,0.4248]
[1735679365093,3.50721,3346.0,3345.9,0.4248]
[1735679369001,0.29948,3345.3,3345.0,3.2078]
[1735679369201,0.29948,3345.3,3345.2,1.59418]
[1735679369704,0.29947,3345.3,3345.2,1.59418]
[1735679369901,0.29947,3345.4,3345.2,1.59418]
[1735679370502,0.29947,3345.4,3345.2,1.2947]
[1735679370701,4.4248,3346.0,3345.5,0.29945]
[1735679370900,4.4248,3346.0,3345.2,1.2947]
[1735679370901,0.29944,3345.6,3345.2,1.2947]
[1735679371216,0.29944,3345.6,3345.4,0.29946]
[1735679372003,4.4248,3346.0,3345.2,1.2947]
[1735679372204,0.29946,3345.4,3345.3,0.29947]
[1735679372505,4.4248,3346.0,3345.4,0.29946]
[1735679372506,0.29945,3345.6,3345.4,0.29946]
[1735679372708,0.29943,3345.6,3345.2,1.2947]
[1735679372907,0.29943,3345.6,3345.4,0.29943]
[1735679373207,0.29943,3345.6,3345.3,0.29945]
[1735679373407,0.29943,3345.6,3345.4,0.29943]
[1735679374409,3.2078,3346.0,3345.2,1.2947]
[1735679374612,3.2078,3346.4,3345.9,3.2078]
[1735679374802,3.2078,3346.8,3346.5,0.29934]
[1735679375109,0.29934,3346.5,3346.4,0.29934]
[1735679375607,3.2078,3346.8,3346.0,2.07466]
[1735679376004,3.2078,3346.8,3346.4,0.29934]
[1735679376005,0.29934,3346.5,3346.4,0.29934]
[1735679376199,0.29934,3346.5,3346.0,1.3262]
[1735679376399,1.80979156,3346.7,3346.2,0.29936]
[1735679376606,0.29935,3346.4,3346.2,0.29936]
[1735679376807,3.2078,3346.8,3346.3,0.29936]
[1735679377002,0.29934,3346.5,3346.4,0.29934]
[1735679377399,0.74818,3347.3,3346.3,3.2078]
[1735679377400,3.2078,3347.2,3346.3,3.2078]
[1735679377606,0.359,3348.0,3346.3,3.2078]
[1735679377607,5.01759156,3347.6,3347.1,0.29928]
[1735679377803,0.29927,3347.3,3347.2,0.8916]
[1735679381405,3.02779156,3347.4,3346.0,1.80979156]
[1735679381606,0.29935,3346.5,3346.2,0.4266]
[1735679381809,1.80979156,3346.9,3346.2,0.4266]
[1735679382005,0.29932,3346.7,3346.3,3.2078]
[1735679382207,0.29932,3346.7,3346.5,0.29933]
[1735679382408,3.5071,3347.0,3346.8,0.2993]
[1735679382716,3.2078,3347.6,3346.7,3.2078]
[1735679382906,0.29928,3347.2,3347.1,0.29928]
[1735679383609,0.29927,3347.3,3347.1,0.29928]
[1735679383811,0.29927,3347.3,3347.2,0.4506]
[1735679385208,3.2078,3347.6,3347.2,0.4506]
[1735679385510,1.80979156,3347.8,3347.3,0.29927]
[1735679385511,0.29923,3347.8,3347.3,0.29927]
[1735679385812,2.30134591,3348.4,3347.6,0.74811]
[1735679386015,2.60051591,3348.4,3348.2,0.29918]
[1735679386312,0.29917,3348.4,3348.3,0.4285]
[1735679386912,3.75153099,3348.5,3348.3,0.72767]
[1735679387414,1.96579,3349.0,3348.3,0.72767]
[1735679387415,5.01759156,3348.8,3348.3,0.4285]
[1735679387614,0.29921,3347.9,3347.8,0.4622]
[1735679388110,3.2078,3348.0,3347.8,0.4622]
[1735679388310,5.01759156,3348.4,3347.8,0.4622]
[1735679388509,5.01759156,3348.4,3347.9,0.29921]
[1735679388510,0.29919,3348.2,3347.9,0.29921]
[1735679388717,0.29919,3348.2,3348.0,0.2992]
[1735679388903,0.2992,3348.1,3347.9,0.29921]
[1735679389111,0.29919,3348.2,3348.0,0.2992]